[Event "*** Titled Tuesday Blitz"]
[Site "Chess.com"]
[Date "2019.02.05"]
[Round "9"]
[White "Koksik_13"]
[Black "AliKa2810"]
[Result "1-0"]
[WhiteElo "2668"]
[BlackElo "2473"]
[TimeControl "180+2"]
[EndTime "15:12:29 PST"]
[Termination "Koksik_13 won by resignation"]

1. b3 {[%clk 0:02:47.3]} 1... e5 {[%clk 0:02:56.4]} 2. Bb2 {[%clk 0:02:47.7]}
2... d6 {[%clk 0:02:58.1]} 3. f4 {[%clk 0:02:47.3]} 3... exf4 {[%clk 0:02:56.4]}
4. Nf3 {[%clk 0:02:48.2]} 4... Nf6 {[%clk 0:02:56.6]} 5. g3 {[%clk 0:02:49.4]}
5... fxg3 {[%clk 0:02:55.7]} 6. hxg3 {[%clk 0:02:51.3]} 6... Bg4 {[%clk
0:02:51]} 7. e3 {[%clk 0:02:49.6]} 7... Nc6 {[%clk 0:02:47]} 8. Nc3 {[%clk
0:02:50.6]} 8... Qd7 {[%clk 0:02:41.2]} 9. Qe2 {[%clk 0:02:50.3]} 9... Be7
{[%clk 0:02:34.5]} 10. O-O-O {[%clk 0:02:51.4]} 10... O-O-O {[%clk 0:02:33.5]}
11. Kb1 {[%clk 0:02:52.1]} 11... Kb8 {[%clk 0:02:34.5]} 12. Bg2 {[%clk
0:02:53.1]} 12... h5 {[%clk 0:02:30.8]} 13. Rdf1 {[%clk 0:02:53.6]} 13... Ne5
{[%clk 0:02:29.1]} 14. Qe1 {[%clk 0:02:49.7]} 14... Nxf3 {[%clk 0:02:27.5]} 15.
Bxf3 {[%clk 0:02:50.9]} 15... Qe6 {[%clk 0:02:17.8]} 16. Qe2 {[%clk 0:02:50.1]}
16... a6 {[%clk 0:02:12.8]} 17. a4 {[%clk 0:02:48.7]} 17... d5 {[%clk
0:02:13.8]} 18. Qd3 {[%clk 0:02:48]} 18... Bxf3 {[%clk 0:02:08.6]} 19. Rxf3
{[%clk 0:02:48.5]} 19... Ne4 {[%clk 0:02:10.1]} 20. Ne2 {[%clk 0:02:47.4]} 20...
Bf6 {[%clk 0:02:05.2]} 21. Bxf6 {[%clk 0:02:48.5]} 21... Nxf6 {[%clk 0:02:05]}
22. Nd4 {[%clk 0:02:50]} 22... Qe4 {[%clk 0:02:03.7]} 23. Rhf1 {[%clk
0:02:50.1]} 23... Qg4 {[%clk 0:01:43.3]} 24. Nf5 {[%clk 0:02:47.2]} 24... Nd7
{[%clk 0:01:44.3]} 25. Rf4 {[%clk 0:02:45.2]} 25... Qg5 {[%clk 0:01:23.9]} 26.
Rb4 {[%clk 0:02:45.5]} 26... Nc5 {[%clk 0:01:11.9]} 27. Qe2 {[%clk 0:02:43.5]}
27... Ka7 {[%clk 0:01:01.1]} 28. Nd4 {[%clk 0:02:39.4]} 28... Qg6 {[%clk
0:00:54]} 29. a5 {[%clk 0:02:30.4]} 29... Rd7 {[%clk 0:00:48.9]} 30. Qf2 {[%clk
0:02:29.9]} 30... Ne4 {[%clk 0:00:47.1]} 31. Qe1 {[%clk 0:02:12.4]} 31... Qxg3
{[%clk 0:00:44.6]} 32. Qc1 {[%clk 0:02:11.7]} 32... h4 {[%clk 0:00:41.9]} 33. d3
{[%clk 0:02:11.5]} 33... Qd6 {[%clk 0:00:40.1]} 34. c3 {[%clk 0:02:04.6]} 34...
Ng3 {[%clk 0:00:39.3]} 35. Rf2 {[%clk 0:01:48.5]} 35... h3 {[%clk 0:00:37.1]}
36. Qg1 {[%clk 0:01:48.5]} 36... Qe5 {[%clk 0:00:24.6]} 37. e4 {[%clk 0:01:49]}
37... c5 {[%clk 0:00:23.7]} 38. Rxf7 {[%clk 0:01:39.8]} 38... h2 {[%clk
0:00:19.3]} 39. Nc6+ {[%clk 0:01:35.3]} 39... Ka8 {[%clk 0:00:17.3]} 40. Qxh2
{[%clk 0:01:36.2]} 40... bxc6 {[%clk 0:00:07.6]} 41. Qxh8+ {[%clk 0:01:35.3]}
1-0

[Event "*** Titled Tuesday Blitz"]
[Site "Chess.com"]
[Date "2019.02.05"]
[Round "9"]
[White "Gabrielian_Artur"]
[Black "wenx95"]
[Result "1-0"]
[WhiteElo "2721"]
[BlackElo "2510"]
[TimeControl "180+2"]
[EndTime "15:12:30 PST"]
[Termination "Gabrielian_Artur won by resignation"]

1. e4 {[%clk 0:03:01.9]} 1... d5 {[%clk 0:02:58.9]} 2. exd5 {[%clk 0:03:02.3]}
2... Qxd5 {[%clk 0:03:00]} 3. Nc3 {[%clk 0:03:03.1]} 3... Qa5 {[%clk 0:03:01]}
4. d4 {[%clk 0:03:02.6]} 4... Nf6 {[%clk 0:03:02]} 5. Nf3 {[%clk 0:03:03.2]}
5... Nc6 {[%clk 0:03:02.8]} 6. Bb5 {[%clk 0:03:03.1]} 6... Nd5 {[%clk
0:03:03.2]} 7. Rb1 {[%clk 0:03:03.1]} 7... a6 {[%clk 0:02:55.3]} 8. Bxc6+ {[%clk
0:03:03.1]} 8... bxc6 {[%clk 0:02:56.7]} 9. O-O {[%clk 0:03:04]} 9... Bg4 {[%clk
0:02:42.3]} 10. h3 {[%clk 0:03:04.2]} 10... Nxc3 {[%clk 0:02:08.4]} 11. bxc3
{[%clk 0:03:04.1]} 11... Qxa2 {[%clk 0:01:58.6]} 12. Bf4 {[%clk 0:03:02.1]}
12... Bf5 {[%clk 0:01:15.6]} 13. Ne5 {[%clk 0:02:39.4]} 13... e6 {[%clk
0:01:09.2]} 14. Qh5 {[%clk 0:01:56.4]} 14... g6 {[%clk 0:00:52.9]} 15. Qh4
{[%clk 0:01:55.8]} 15... Bg7 {[%clk 0:00:20.6]} 16. Bh6 {[%clk 0:01:53]} 16...
O-O {[%clk 0:00:19.7]} 17. Bxg7 {[%clk 0:01:53.5]} 17... Kxg7 {[%clk 0:00:21]}
18. Rb7 {[%clk 0:01:53.1]} 18... Qxc2 {[%clk 0:00:13.5]} 19. Rxc7 {[%clk
0:01:49.5]} 19... Qe4 {[%clk 0:00:14]} 20. g4 {[%clk 0:01:46]} 20... h6 {[%clk
0:00:06.6]} 21. f3 {[%clk 0:01:36.4]} 21... Qe3+ {[%clk 0:00:07]} 22. Qf2 {[%clk
0:01:28.8]} 22... Qxf2+ {[%clk 0:00:06.7]} 23. Rxf2 {[%clk 0:01:30.1]} 23... Bb1
{[%clk 0:00:05.9]} 24. Rb2 {[%clk 0:01:30.9]} 24... Rab8 {[%clk 0:00:06.5]} 25.
Rxb8 {[%clk 0:01:31.2]} 25... Rxb8 {[%clk 0:00:07.3]} 26. Rxf7+ {[%clk
0:01:32.4]} 26... Kg8 {[%clk 0:00:08.8]} 27. Ra7 {[%clk 0:01:33.2]} 27... Rb6
{[%clk 0:00:05.6]} 28. Kf2 {[%clk 0:01:24]} 28... Bc2 {[%clk 0:00:04]} 29. Ke3
{[%clk 0:01:24.2]} 29... g5 {[%clk 0:00:05.1]} 30. f4 {[%clk 0:01:19.6]} 30...
gxf4+ {[%clk 0:00:06]} 31. Kxf4 {[%clk 0:01:21]} 31... Bd1 {[%clk 0:00:06]} 32.
h4 {[%clk 0:01:17.2]} 32... Be2 {[%clk 0:00:05.7]} 33. g5 {[%clk 0:01:17.8]}
33... hxg5+ {[%clk 0:00:06.6]} 34. Kxg5 {[%clk 0:01:19.1]} 34... Rb1 {[%clk
0:00:07.1]} 35. Ng6 {[%clk 0:01:16.5]} 35... Rg1+ {[%clk 0:00:06.1]} 36. Kh6
{[%clk 0:01:16.9]} 36... Rxg6+ {[%clk 0:00:03.5]} 37. Kxg6 {[%clk 0:01:17.6]}
37... Bd3+ {[%clk 0:00:04.4]} 1-0

[Event "*** Titled Tuesday Blitz"]
[Site "Chess.com"]
[Date "2019.02.05"]
[Round "9"]
[White "David_Klein"]
[Black "GukeshDommaraju"]
[Result "0-1"]
[WhiteElo "2599"]
[BlackElo "2697"]
[TimeControl "180+2"]
[EndTime "15:12:31 PST"]
[Termination "GukeshDommaraju won by checkmate"]

1. g3 {[%clk 0:03:01.9]} 1... g6 {[%clk 0:02:59.4]} 2. Bg2 {[%clk 0:03:02.5]}
2... Bg7 {[%clk 0:03:00.8]} 3. Nf3 {[%clk 0:03:03.7]} 3... Nf6 {[%clk 0:03:02]}
4. O-O {[%clk 0:03:04.9]} 4... O-O {[%clk 0:03:03.6]} 5. c4 {[%clk 0:03:06]}
5... d6 {[%clk 0:03:05]} 6. Nc3 {[%clk 0:03:06.8]} 6... Nc6 {[%clk 0:03:06.3]}
7. d4 {[%clk 0:03:07.9]} 7... Bg4 {[%clk 0:03:06]} 8. h3 {[%clk 0:03:08]} 8...
Bxf3 {[%clk 0:03:05.2]} 9. Bxf3 {[%clk 0:03:09.9]} 9... Nd7 {[%clk 0:03:06.7]}
10. e3 {[%clk 0:03:05.3]} 10... e5 {[%clk 0:03:06.8]} 11. d5 {[%clk 0:03:06]}
11... Ne7 {[%clk 0:03:07.5]} 12. Bg2 {[%clk 0:03:07.1]} 12... f5 {[%clk
0:03:08.4]} 13. Rb1 {[%clk 0:03:04.6]} 13... e4 {[%clk 0:03:08.5]} 14. Ne2
{[%clk 0:03:04.5]} 14... Nc5 {[%clk 0:03:02.3]} 15. Nf4 {[%clk 0:03:01.7]} 15...
g5 {[%clk 0:02:50.3]} 16. Nh5 {[%clk 0:02:50.4]} 16... Be5 {[%clk 0:02:51]} 17.
b4 {[%clk 0:02:45.8]} 17... Nd3 {[%clk 0:02:51.7]} 18. f3 {[%clk 0:02:47.2]}
18... Nxc1 {[%clk 0:02:39.4]} 19. Rxc1 {[%clk 0:02:44.9]} 19... exf3 {[%clk
0:02:39.7]} 20. Qxf3 {[%clk 0:02:44.5]} 20... Qe8 {[%clk 0:02:36.8]} 21. g4
{[%clk 0:02:43.3]} 21... f4 {[%clk 0:02:33.3]} 22. exf4 {[%clk 0:02:30.5]} 22...
gxf4 {[%clk 0:02:35.2]} 23. c5 {[%clk 0:02:12.4]} 23... Ng6 {[%clk 0:02:32.5]}
24. Kh1 {[%clk 0:02:05.6]} 24... Qe7 {[%clk 0:02:09.1]} 25. Qe4 {[%clk
0:01:59.9]} 25... Qg5 {[%clk 0:02:05]} 26. cxd6 {[%clk 0:01:57.4]} 26... cxd6
{[%clk 0:02:05.5]} 27. Rc7 {[%clk 0:01:56.6]} 27... Rac8 {[%clk 0:02:01.1]} 28.
Rxb7 {[%clk 0:01:40.9]} 28... f3 {[%clk 0:01:58.8]} 29. Bxf3 {[%clk 0:01:31.4]}
29... Rc1 {[%clk 0:01:53]} 30. Qe2 {[%clk 0:00:15.6]} 30... Nh4 {[%clk 0:01:30]}
31. Bg2 {[%clk 0:00:13.4]} 31... Rcxf1+ {[%clk 0:01:19.4]} 32. Bxf1 {[%clk
0:00:14.8]} 32... Qc1 {[%clk 0:01:18.4]} 33. Kg1 {[%clk 0:00:13.4]} 33... Rxf1+
{[%clk 0:01:11.2]} 34. Qxf1 {[%clk 0:00:13]} 34... Bd4+ {[%clk 0:01:11.9]} 35.
Kh2 {[%clk 0:00:09]} 35... Qxf1 {[%clk 0:01:12.7]} 36. Rb8+ {[%clk 0:00:09.8]}
36... Kf7 {[%clk 0:01:13.4]} 37. Rb7+ {[%clk 0:00:11]} 37... Kg6 {[%clk
0:01:14.5]} 38. Kg3 {[%clk 0:00:11.2]} 38... Qf2# {[%clk 0:01:14.4]} 0-1

[Event "*** Titled Tuesday Blitz"]
[Site "Chess.com"]
[Date "2019.02.05"]
[Round "9"]
[White "NMJeevanK"]
[Black "Mbneu"]
[Result "1-0"]
[WhiteElo "2371"]
[BlackElo "2267"]
[TimeControl "180+2"]
[EndTime "15:12:31 PST"]
[Termination "NMJeevanK won by resignation"]

1. e4 {[%clk 0:03:01.9]} 1... Nf6 {[%clk 0:02:59.7]} 2. e5 {[%clk 0:03:03]} 2...
Nd5 {[%clk 0:03:00]} 3. c4 {[%clk 0:03:04.9]} 3... Nb6 {[%clk 0:03:00.4]} 4. d4
{[%clk 0:03:06.6]} 4... d6 {[%clk 0:03:00.7]} 5. exd6 {[%clk 0:03:08.5]} 5...
cxd6 {[%clk 0:03:01.3]} 6. Nc3 {[%clk 0:03:10.4]} 6... g6 {[%clk 0:03:01.9]} 7.
Nf3 {[%clk 0:03:11.7]} 7... Bg7 {[%clk 0:03:01.8]} 8. Be3 {[%clk 0:03:13.3]}
8... O-O {[%clk 0:03:01.8]} 9. Rc1 {[%clk 0:03:14.5]} 9... d5 {[%clk 0:02:56.7]}
10. c5 {[%clk 0:03:13.9]} 10... Nc4 {[%clk 0:02:56.8]} 11. Nxd5 {[%clk
0:03:05.7]} 11... Nxe3 {[%clk 0:02:47.6]} 12. Nxe3 {[%clk 0:03:06.2]} 12... Nc6
{[%clk 0:02:47]} 13. Rc4 {[%clk 0:02:37.4]} 13... Qa5+ {[%clk 0:02:33.4]} 14.
Qd2 {[%clk 0:02:28.9]} 14... Qxa2 {[%clk 0:02:31.9]} 15. Be2 {[%clk 0:02:27.3]}
15... Na5 {[%clk 0:01:39.4]} 16. Rc3 {[%clk 0:02:26.3]} 16... Rd8 {[%clk
0:01:20.1]} 17. O-O {[%clk 0:02:24.2]} 17... Nb3 {[%clk 0:01:20.5]} 18. Qd1
{[%clk 0:01:03.7]} 18... Nxd4 {[%clk 0:01:20.2]} 19. Bc4 {[%clk 0:01:04.9]}
19... Qxb2 {[%clk 0:01:11.1]} 20. Rd3 {[%clk 0:01:05.7]} 20... e5 {[%clk
0:00:46.6]} 21. Ng5 {[%clk 0:01:02.1]} 21... Rf8 {[%clk 0:00:35.9]} 22. Nd5
{[%clk 0:00:42.5]} 22... Be6 {[%clk 0:00:24.7]} 23. Ne7+ {[%clk 0:00:35.8]}
23... Kh8 {[%clk 0:00:24.4]} 24. Bxe6 {[%clk 0:00:34.1]} 24... Nxe6 {[%clk
0:00:22]} 25. Nxe6 {[%clk 0:00:28.8]} 25... fxe6 {[%clk 0:00:23.2]} 26. Rh3
{[%clk 0:00:29.9]} 26... h5 {[%clk 0:00:13.4]} 27. Rxh5+ {[%clk 0:00:23.2]} 1-0

[Event "*** Titled Tuesday Blitz"]
[Site "Chess.com"]
[Date "2019.02.05"]
[Round "9"]
[White "HElissalt"]
[Black "Synctel"]
[Result "1-0"]
[WhiteElo "2125"]
[BlackElo "1928"]
[TimeControl "180+2"]
[EndTime "15:12:32 PST"]
[Termination "HElissalt won by resignation"]

1. d4 {[%clk 0:03:01.9]} 1... Nf6 {[%clk 0:02:58.9]} 2. c4 {[%clk 0:03:02.3]}
2... e6 {[%clk 0:02:59.6]} 3. Nf3 {[%clk 0:03:01.6]} 3... Bb4+ {[%clk
0:02:59.8]} 4. Bd2 {[%clk 0:03:02.2]} 4... Qe7 {[%clk 0:03:00.6]} 5. g3 {[%clk
0:02:57.3]} 5... Nc6 {[%clk 0:03:01.4]} 6. Bg2 {[%clk 0:02:57.4]} 6... Bxd2+
{[%clk 0:03:02.5]} 7. Qxd2 {[%clk 0:02:57.4]} 7... Ne4 {[%clk 0:03:01.5]} 8. Qc2
{[%clk 0:02:54.6]} 8... Qb4+ {[%clk 0:02:55.8]} 9. Nc3 {[%clk 0:02:29.4]} 9...
Nxc3 {[%clk 0:02:08]} 10. Qxc3 {[%clk 0:02:28.3]} 10... Qxc3+ {[%clk 0:02:07.5]}
11. bxc3 {[%clk 0:02:28.4]} 11... d6 {[%clk 0:02:07]} 12. Nd2 {[%clk 0:02:27.2]}
12... e5 {[%clk 0:02:02.8]} 13. e3 {[%clk 0:02:26.7]} 13... O-O {[%clk
0:01:55.1]} 14. Rb1 {[%clk 0:02:15]} 14... Nd8 {[%clk 0:01:39.5]} 15. f4 {[%clk
0:02:09.6]} 15... exf4 {[%clk 0:01:37.5]} 16. gxf4 {[%clk 0:02:09.5]} 16... f5
{[%clk 0:01:14.6]} 17. Kf2 {[%clk 0:02:06.9]} 17... c6 {[%clk 0:01:08.3]} 18. h4
{[%clk 0:01:33.3]} 18... Be6 {[%clk 0:00:52.8]} 19. h5 {[%clk 0:01:31.8]} 19...
d5 {[%clk 0:00:34.4]} 20. c5 {[%clk 0:01:23.1]} 20... Rc8 {[%clk 0:00:30.3]} 21.
Bf1 {[%clk 0:01:22.6]} 21... Rc7 {[%clk 0:00:29.4]} 22. Bd3 {[%clk 0:01:20.4]}
22... Re7 {[%clk 0:00:28.2]} 23. Rhg1 {[%clk 0:01:14]} 23... Bc8 {[%clk
0:00:23.4]} 24. Rg3 {[%clk 0:01:12.8]} 24... Rf6 {[%clk 0:00:21.3]} 25. Rh1
{[%clk 0:01:07.8]} 25... Rh6 {[%clk 0:00:21.8]} 26. Rgh3 {[%clk 0:01:06.5]}
26... Nf7 {[%clk 0:00:17.8]} 27. Nf3 {[%clk 0:01:05.9]} 27... Kf8 {[%clk
0:00:10.8]} 28. Ne5 {[%clk 0:01:04.7]} 28... Nxe5 {[%clk 0:00:11.1]} 29. dxe5
{[%clk 0:01:05]} 29... Be6 {[%clk 0:00:11]} 30. Rg3 {[%clk 0:01:02]} 30... Rf7
{[%clk 0:00:09.3]} 31. Rg5 {[%clk 0:01:02]} 31... Bd7 {[%clk 0:00:09.6]} 32.
Rhg1 {[%clk 0:01:02.3]} 32... Be6 {[%clk 0:00:11]} 33. Ke2 {[%clk 0:01:02.3]}
33... Bd7 {[%clk 0:00:12.2]} 34. Kd2 {[%clk 0:01:03.3]} 34... Re7 {[%clk
0:00:12.5]} 35. a4 {[%clk 0:01:04.4]} 35... Rf6 {[%clk 0:00:11.9]} 36. exf6
{[%clk 0:01:03.7]} 36... gxf6 {[%clk 0:00:12.3]} 37. Rg8+ {[%clk 0:01:03.9]}
37... Kf7 {[%clk 0:00:13.7]} 38. R1g7+ {[%clk 0:01:03.8]} 38... Ke6 {[%clk
0:00:14.3]} 39. Rxe7+ {[%clk 0:01:04.9]} 39... Kxe7 {[%clk 0:00:15.5]} 40. Rg7+
{[%clk 0:01:05.8]} 1-0

[Event "*** Titled Tuesday Blitz"]
[Site "Chess.com"]
[Date "2019.02.05"]
[Round "9"]
[White "wanyaland"]
[Black "KhalilMousavi77"]
[Result "1-0"]
[WhiteElo "2117"]
[BlackElo "2699"]
[TimeControl "180+2"]
[EndTime "15:12:37 PST"]
[Termination "wanyaland won by resignation"]

1. e4 {[%clk 0:03:01.5]} 1... e5 {[%clk 0:02:57.1]} 2. Nf3 {[%clk 0:03:00.6]}
2... Nf6 {[%clk 0:02:52.3]} 3. Nxe5 {[%clk 0:03:00.9]} 3... d6 {[%clk 0:02:52]}
4. Nf3 {[%clk 0:03:01.5]} 4... Nxe4 {[%clk 0:02:53.1]} 5. Nc3 {[%clk 0:03:02.8]}
5... Nxc3 {[%clk 0:02:54]} 6. dxc3 {[%clk 0:03:04.4]} 6... Be7 {[%clk
0:02:55.7]} 7. Be3 {[%clk 0:03:05.2]} 7... O-O {[%clk 0:02:53.3]} 8. Qd2 {[%clk
0:03:06.5]} 8... c5 {[%clk 0:02:51.6]} 9. O-O-O {[%clk 0:03:06.8]} 9... Be6
{[%clk 0:02:48.4]} 10. Kb1 {[%clk 0:03:06.6]} 10... Nd7 {[%clk 0:02:41.5]} 11.
h4 {[%clk 0:03:05.9]} 11... Qa5 {[%clk 0:02:41.3]} 12. c4 {[%clk 0:03:03.4]}
12... Qxd2 {[%clk 0:02:38.6]} 13. Rxd2 {[%clk 0:03:03.3]} 13... Ne5 {[%clk
0:02:39]} 14. Nxe5 {[%clk 0:03:02.2]} 14... dxe5 {[%clk 0:02:40.7]} 15. Be2
{[%clk 0:03:00]} 15... Rad8 {[%clk 0:02:39.2]} 16. g3 {[%clk 0:03:00.9]} 16...
Rxd2 {[%clk 0:02:38.5]} 17. Bxd2 {[%clk 0:03:02]} 17... Rd8 {[%clk 0:02:40.4]}
18. Bc3 {[%clk 0:03:00.3]} 18... f6 {[%clk 0:02:40.4]} 19. b3 {[%clk 0:02:59.7]}
19... b6 {[%clk 0:02:38.6]} 20. Bd3 {[%clk 0:02:57.1]} 20... Bg4 {[%clk
0:02:32.3]} 21. Re1 {[%clk 0:02:55.2]} 21... Bf3 {[%clk 0:02:31.4]} 22. Re3
{[%clk 0:02:53.5]} 22... Bc6 {[%clk 0:02:24.2]} 23. f4 {[%clk 0:02:52.9]} 23...
Bd6 {[%clk 0:02:25.5]} 24. fxe5 {[%clk 0:02:51.8]} 24... fxe5 {[%clk 0:02:26.5]}
25. Be4 {[%clk 0:02:40.9]} 25... Bxe4 {[%clk 0:02:25.7]} 26. Rxe4 {[%clk
0:02:42.8]} 26... Re8 {[%clk 0:02:27.2]} 27. Kc1 {[%clk 0:02:41.2]} 27... h5
{[%clk 0:02:28.8]} 28. Kd2 {[%clk 0:02:40.8]} 28... Kf7 {[%clk 0:02:28.9]} 29.
Kd3 {[%clk 0:02:41.7]} 29... g6 {[%clk 0:02:29.7]} 30. Re2 {[%clk 0:02:40.9]}
30... Bc7 {[%clk 0:02:27.6]} 31. Ke4 {[%clk 0:02:41]} 31... Ke6 {[%clk 0:02:28]}
32. Rf2 {[%clk 0:02:37]} 32... Rd8 {[%clk 0:02:27.9]} 33. a4 {[%clk 0:02:30.8]}
33... a5 {[%clk 0:02:28.7]} 34. Rd2 {[%clk 0:02:16.2]} 34... Rg8 {[%clk
0:02:24.1]} 35. Rd5 {[%clk 0:02:10.8]} 35... g5 {[%clk 0:01:49.6]} 36. Bxe5
{[%clk 0:02:09]} 36... Bxe5 {[%clk 0:01:43.9]} 37. Rxe5+ {[%clk 0:02:09.4]}
37... Kf6 {[%clk 0:01:45.4]} 38. Rf5+ {[%clk 0:02:05.2]} 38... Ke6 {[%clk
0:01:46.9]} 39. Rxg5 {[%clk 0:02:04.4]} 39... Rd8 {[%clk 0:01:48]} 40. Rxh5
{[%clk 0:02:02.6]} 40... Rd4+ {[%clk 0:01:49]} 41. Ke3 {[%clk 0:02:00.8]} 41...
Rd1 {[%clk 0:01:46.6]} 42. Rh6+ {[%clk 0:02:00.4]} 42... Ke5 {[%clk 0:01:47.3]}
43. Rxb6 {[%clk 0:02:01.2]} 43... Ra1 {[%clk 0:01:36.2]} 44. Rb5 {[%clk
0:02:00.3]} 44... Re1+ {[%clk 0:01:34.6]} 45. Kd2 {[%clk 0:02:00.8]} 45... Rg1
{[%clk 0:01:32.7]} 46. Rxc5+ {[%clk 0:02:01.8]} 46... Kd4 {[%clk 0:01:34.2]} 47.
Rd5+ {[%clk 0:02:02.8]} 47... Ke4 {[%clk 0:01:35.4]} 48. Rxa5 {[%clk 0:02:02.7]}
48... Kd4 {[%clk 0:01:35.2]} 49. Rd5+ {[%clk 0:02:01.8]} 49... Ke4 {[%clk
0:01:36.5]} 50. Rd3 {[%clk 0:02:01.6]} 50... Rg2+ {[%clk 0:01:35.9]} 51. Kc3
{[%clk 0:02:02.6]} 51... Rg1 {[%clk 0:01:37]} 52. c5 {[%clk 0:02:01.3]} 52...
Rf1 {[%clk 0:01:35.3]} 53. Kc4 {[%clk 0:01:58.8]} 53... Rf2 {[%clk 0:01:35.8]}
54. c3 {[%clk 0:01:59.1]} 54... Rf6 {[%clk 0:01:36.3]} 55. b4 {[%clk 0:01:58.5]}
1-0

[Event "*** Titled Tuesday Blitz"]
[Site "Chess.com"]
[Date "2019.02.05"]
[Round "9"]
[White "nailbeshirli"]
[Black "VeraNebolsina"]
[Result "1-0"]
[WhiteElo "2682"]
[BlackElo "2383"]
[TimeControl "180+2"]
[EndTime "15:12:38 PST"]
[Termination "nailbeshirli won by resignation"]

1. e4 {[%clk 0:03:01.3]} 1... c5 {[%clk 0:02:58.6]} 2. Nf3 {[%clk 0:02:55.5]}
2... d6 {[%clk 0:02:59.1]} 3. Nc3 {[%clk 0:02:47.8]} 3... Nf6 {[%clk 0:02:58.1]}
4. e5 {[%clk 0:02:44.4]} 4... dxe5 {[%clk 0:02:57.3]} 5. Nxe5 {[%clk 0:02:46.3]}
5... Nbd7 {[%clk 0:02:40.8]} 6. d4 {[%clk 0:02:46.4]} 6... Nxe5 {[%clk 0:02:27]}
7. dxe5 {[%clk 0:02:44.4]} 7... Qxd1+ {[%clk 0:02:27.8]} 8. Nxd1 {[%clk
0:02:46.3]} 8... Nd5 {[%clk 0:02:24.1]} 9. Ne3 {[%clk 0:02:43]} 9... Nc7 {[%clk
0:02:05.1]} 10. g3 {[%clk 0:02:39.6]} 10... g5 {[%clk 0:01:53.7]} 11. h4 {[%clk
0:02:37.9]} 11... Bg7 {[%clk 0:01:46.1]} 12. hxg5 {[%clk 0:02:32.6]} 12... Bxe5
{[%clk 0:01:46.1]} 13. Bg2 {[%clk 0:02:31]} 13... Rb8 {[%clk 0:01:36.7]} 14. Nc4
{[%clk 0:02:28.1]} 14... Bg7 {[%clk 0:01:34.4]} 15. Bf4 {[%clk 0:02:28.9]} 15...
e5 {[%clk 0:01:26.5]} 16. Bxe5 {[%clk 0:02:30]} 16... Bxe5 {[%clk 0:01:25.2]}
17. Nxe5 {[%clk 0:02:31.6]} 17... Ne6 {[%clk 0:01:22.1]} 18. f4 {[%clk
0:02:24.4]} 18... Nd4 {[%clk 0:01:22.6]} 19. Kf2 {[%clk 0:02:19]} 19... Bf5
{[%clk 0:01:19.2]} 20. c3 {[%clk 0:02:19.9]} 20... Ne6 {[%clk 0:01:15.9]} 21.
Rhe1 {[%clk 0:02:16.7]} 21... Rd8 {[%clk 0:00:57.9]} 22. Rad1 {[%clk 0:02:07.7]}
22... O-O {[%clk 0:00:54.6]} 23. Nc4 {[%clk 0:02:06.8]} 23... Bd3 {[%clk
0:00:32.3]} 24. Ne5 {[%clk 0:02:01.3]} 24... Bc2 {[%clk 0:00:33.5]} 25. Rxd8
{[%clk 0:01:53.8]} 25... Rxd8 {[%clk 0:00:34]} 26. Bxb7 {[%clk 0:01:50.8]} 26...
Rb8 {[%clk 0:00:34.4]} 27. Bd5 {[%clk 0:01:48.2]} 27... Bf5 {[%clk 0:00:10.1]}
28. b3 {[%clk 0:01:45.5]} 28... Rd8 {[%clk 0:00:08.7]} 29. c4 {[%clk 0:01:37.7]}
29... Kg7 {[%clk 0:00:09.1]} 30. g4 {[%clk 0:01:32.7]} 30... Bc2 {[%clk
0:00:09.5]} 31. Nxf7 {[%clk 0:01:29.2]} 31... Nxf4 {[%clk 0:00:03.1]} 32. Nxd8
{[%clk 0:01:26.1]} 32... Nd3+ {[%clk 0:00:04.2]} 33. Ke2 {[%clk 0:01:27.7]}
33... Nxe1 {[%clk 0:00:05.6]} 34. Kxe1 {[%clk 0:01:29.6]} 34... Kg6 {[%clk
0:00:05.3]} 35. Ne6 {[%clk 0:01:30.8]} 35... Bb1 {[%clk 0:00:05.9]} 36. a3
{[%clk 0:01:31.2]} 36... Ba2 {[%clk 0:00:06.6]} 37. Nxc5 {[%clk 0:01:32.5]}
37... Kxg5 {[%clk 0:00:06.8]} 38. Be6 {[%clk 0:01:31]} 38... a5 {[%clk
0:00:05.1]} 39. Kd2 {[%clk 0:01:31.4]} 1-0

[Event "*** Titled Tuesday Blitz"]
[Site "Chess.com"]
[Date "2019.02.05"]
[Round "9"]
[White "Sosat98"]
[Black "Mikhail_Golubev"]
[Result "0-1"]
[WhiteElo "2591"]
[BlackElo "2489"]
[TimeControl "180+2"]
[EndTime "15:12:39 PST"]
[Termination "Mikhail_Golubev won by resignation"]

1. d4 {[%clk 0:03:01.9]} 1... Nf6 {[%clk 0:02:59.8]} 2. Nf3 {[%clk 0:03:02.5]}
2... d6 {[%clk 0:03:00.2]} 3. c4 {[%clk 0:03:02.8]} 3... g6 {[%clk 0:02:59.5]}
4. Nc3 {[%clk 0:03:04.2]} 4... Bg7 {[%clk 0:03:01.1]} 5. e4 {[%clk 0:03:05.3]}
5... O-O {[%clk 0:03:02.6]} 6. h3 {[%clk 0:03:04]} 6... e5 {[%clk 0:02:59.9]} 7.
d5 {[%clk 0:03:05.1]} 7... a5 {[%clk 0:03:01]} 8. Be3 {[%clk 0:03:01.9]} 8...
Na6 {[%clk 0:03:01.7]} 9. g4 {[%clk 0:03:01.4]} 9... Nc5 {[%clk 0:03:02.1]} 10.
Qc2 {[%clk 0:02:55.8]} 10... h5 {[%clk 0:02:58.7]} 11. g5 {[%clk 0:02:55.3]}
11... Nfd7 {[%clk 0:02:52.9]} 12. Nh4 {[%clk 0:02:53.7]} 12... c6 {[%clk
0:02:47.8]} 13. O-O-O {[%clk 0:02:40.2]} 13... a4 {[%clk 0:02:46.4]} 14. Kb1
{[%clk 0:02:37.6]} 14... Qc7 {[%clk 0:02:34.7]} 15. Be2 {[%clk 0:02:36.9]} 15...
Nb6 {[%clk 0:02:28.1]} 16. Rd2 {[%clk 0:02:12.4]} 16... cxd5 {[%clk 0:02:23.4]}
17. cxd5 {[%clk 0:02:12.4]} 17... Bd7 {[%clk 0:02:23.4]} 18. Nb5 {[%clk
0:02:11.8]} 18... Bxb5 {[%clk 0:02:15.8]} 19. Bxb5 {[%clk 0:02:13.3]} 19... Rfc8
{[%clk 0:02:16.2]} 20. f3 {[%clk 0:01:58.5]} 20... Qd8 {[%clk 0:02:15.1]} 21.
Ng2 {[%clk 0:01:56.9]} 21... Nb3 {[%clk 0:02:07.4]} 22. Qd3 {[%clk 0:01:44.8]}
22... Nxd2+ {[%clk 0:02:07.3]} 23. Bxd2 {[%clk 0:01:45.6]} 23... Nd7 {[%clk
0:01:59.3]} 24. Qa3 {[%clk 0:01:35.6]} 24... Nc5 {[%clk 0:01:40.3]} 25. Qb4
{[%clk 0:01:35.9]} 25... a3 {[%clk 0:01:33.6]} 26. b3 {[%clk 0:01:34.8]} 26...
Qb6 {[%clk 0:01:30.5]} 27. Ne3 {[%clk 0:01:31.7]} 27... Na6 {[%clk 0:01:14.9]}
28. Nc4 {[%clk 0:01:14.2]} 28... Qd4 {[%clk 0:01:08.2]} 29. Qc3 {[%clk
0:01:11.2]} 29... Qxc3 {[%clk 0:00:42.5]} 30. Bxc3 {[%clk 0:01:11.3]} 30... Nc7
{[%clk 0:00:36.9]} 31. Nxd6 {[%clk 0:00:42.7]} 31... Nxb5 {[%clk 0:00:37.5]} 32.
Nxb5 {[%clk 0:00:43.4]} 32... Rc5 {[%clk 0:00:37.9]} 33. d6 {[%clk 0:00:37.4]}
33... Rxb5 {[%clk 0:00:37.7]} 34. Rd1 {[%clk 0:00:39.1]} 34... Bf8 {[%clk
0:00:36.3]} 35. d7 {[%clk 0:00:40.1]} 35... Rd8 {[%clk 0:00:35.8]} 36. Kc2
{[%clk 0:00:40.5]} 36... Be7 {[%clk 0:00:36.8]} 37. h4 {[%clk 0:00:39.6]} 37...
Rc5 {[%clk 0:00:37.5]} 0-1